fUST/lending_fUST_20240508
["ID","MTS","AMOUNT","RATE_DAILY","PERIOD"]
[326607735,1715136640242,-500.0,0.00015182,2]
[326607736,1715136640253,-654.7,0.00015182,2]
[326607737,1715136640262,-1161.53,0.00015182,2]
[326607738,1715136640276,-505.81082302,0.00015182,2]
[326607739,1715136640286,-500.0,0.00015182,2]
[326607740,1715136640296,-500.0,0.00015182,2]
[326607741,1715136640305,-500.0,0.00015182,2]
[326607742,1715136640316,-500.0,0.00015182,2]
[326607743,1715136640326,-228.44170514,0.00015182,2]
[326607744,1715136640335,-501.11946726,0.00015182,2]
[326607745,1715136640345,-624.7688326,0.00015182,2]
[326607746,1715136640356,-500.0,0.00015182,2]
[326607747,1715136640366,-504.5022126,0.00015182,2]
[326607748,1715136640375,-500.0,0.00015182,2]
[326607749,1715136640385,-502.13694979,0.00015182,2]
[326607750,1715136640394,-500.0,0.00015182,2]
[326607751,1715136640403,-500.0,0.00015182,2]
[326607752,1715136640413,-500.0,0.00015182,2]
[326607753,1715136640423,-412.08463621,0.00015182,2]
[326607754,1715136640432,-509.5482416,0.00015182,2]
[326607755,1715136640441,-500.0,0.00015182,2]
[326607756,1715136640450,-501.28138295,0.00015182,2]
[326607757,1715136640460,-500.0,0.00015182,2]
[326607758,1715136640469,-500.0,0.00015182,2]
[326607759,1715136640478,-500.95631335,0.00015182,2]
[326607760,1715136640487,-500.0,0.00015182,2]
[326607761,1715136640497,-500.0,0.00015182,2]
[326607762,1715136640507,-500.0,0.00015182,2]
[326607763,1715136640516,-500.0,0.00015182,2]
[326607764,1715136640526,-466.92584556,0.00015182,2]
[326607765,1715136640535,-502.05774901,0.00015182,2]
[326607766,1715136640545,-500.0,0.00015182,2]
[326607767,1715136640555,-152.15118119,0.00015182,2]
[326607768,1715136640564,-505.61034041,0.00015182,2]
[326607769,1715136640573,-252.66240127,0.00015182,2]
[326607770,1715136640583,-502.02351516,0.00015184,2]
[326607771,1715136640592,-440.14223108,0.00015184,2]
[326607772,1715136640602,-500.0,0.00015184,2]
[326607773,1715136640611,-187.71000257,0.00015184,2]
[326607774,1715136640620,-500.0,0.00015184,2]
[326607775,1715136640630,-500.0,0.00015184,2]
[326607776,1715136640639,-500.65388214,0.00015184,2]
[326607777,1715136640648,-500.76805601,0.00015184,2]
[326607778,1715136640658,-323.59243744,0.00015215,2]
[326607779,1715136640667,-323.59243744,0.00015283,2]
[326607780,1715136640677,-323.59243744,0.00015351,2]
[326607781,1715136640687,-3445.02,0.0001545,2]
[326607782,1715136640697,-500.0,0.0001545,2]
[326607783,1715136640707,-3187.32,0.0001545,2]
[326607784,1715136640716,-500.0,0.0001545,2]
[326607785,1715136640726,-500.0,0.0001545,2]
[326607786,1715136640735,-500.0,0.0001545,2]
[326607787,1715136640745,-2100.05,0.0001545,2]
[326607788,1715136640755,-834.18,0.0001545,2]
[326607789,1715136640765,-500.0,0.0001545,2]
[326607790,1715136640774,-500.0,0.0001545,2]
[326607791,1715136640784,-500.0,0.0001545,2]
[326607792,1715136640793,-500.0,0.00015451,2]
[326607793,1715136640803,-500.0,0.00015451,2]
[326607794,1715136640814,-500.0,0.00015451,2]
[326607795,1715136640823,-1011.8,0.00015451,2]
[326607796,1715136640832,-500.0,0.00015451,2]
[326607797,1715136640842,-512.76,0.00015451,2]
[326607798,1715136640851,-500.0,0.00015451,2]
[326607799,1715136640860,-500.0,0.00015451,2]
[326607800,1715136640870,-500.0,0.00015451,2]
[326607801,1715136640879,-500.0,0.00015451,2]
[326607802,1715136640889,-956.44,0.00015451,2]
[326607803,1715136640898,-151.0,0.00015451,2]
[326607804,1715136640907,-153.751302,0.00015451,2]
[326607805,1715136640916,-500.0,0.00015451,2]
[326607806,1715136640926,-500.0,0.00015451,2]
[326607807,1715136640935,-542.00622353,0.00015451,2]
[326607808,1715136640944,-151.0,0.00015451,2]
[326607809,1715136640954,-513.9932126,0.00015451,2]
[326607810,1715136640963,-1969.47,0.00015451,2]
[326607811,1715136640973,-500.0,0.00015451,2]
[326607812,1715136640982,-585.24,0.00015451,2]
[326607813,1715136640991,-500.0,0.00015451,2]
[326607814,1715136641001,-500.0,0.00015451,2]
[326607815,1715136641011,-507.73299777,0.00015451,2]
[326607816,1715136641020,-500.0,0.00015451,2]
[326607817,1715136641031,-500.0,0.00015451,2]
[326607818,1715136641040,-500.0,0.00015451,2]
[326607819,1715136641049,-500.0,0.00015451,2]
[326607820,1715136641059,-500.0,0.00015451,2]
[326607821,1715136641068,-974.66,0.00015451,2]
[326607822,1715136641077,-1092.57,0.00015451,2]
[326607825,1715136641087,-1278.78,0.00015451,2]
[326607828,1715136641096,-923.33,0.00015451,2]
[326607830,1715136641105,-151.0,0.00015451,2]
[326607831,1715136641114,-152.736736,0.00015451,2]
[326607833,1715136641124,-500.0,0.00015451,2]
[326607835,1715136641134,-903.36,0.00015451,2]
[326607837,1715136641144,-500.0,0.00015451,2]
[326607839,1715136641153,-507.52185709,0.00015451,2]
[326607841,1715136641163,-1790.63,0.00015451,2]
[326607842,1715136641172,-151.0,0.00015451,2]
[326607843,1715136641181,-500.0,0.00015451,2]
[326607844,1715136641190,-151.0,0.00015451,2]
[326607845,1715136641199,-2171.74,0.00015451,2]
[326607846,1715136641208,-500.0,0.00015451,2]
[326607847,1715136641218,-1940.67,0.00015451,2]
[326607848,1715136641227,-217.69931834,0.00015451,2]
[326607849,1715136641235,-1663.89,0.00015451,2]
[326607850,1715136641244,-644.94,0.00015451,2]
[326607851,1715136641255,-798.88,0.00015451,2]
[326607852,1715136641264,-500.0,0.00015451,2]
[326607853,1715136641277,-500.0,0.00015451,2]
[326607854,1715136641287,-3826.17,0.00015451,2]
[326607855,1715136641296,-151.0,0.00015451,2]
[326607856,1715136641305,-500.0,0.00015451,2]
[326607857,1715136641316,-151.0,0.00015451,2]
[326607858,1715136641325,-1944.26,0.00015451,2]
[326607859,1715136641334,-500.0,0.00015451,2]
[326607860,1715136641343,-500.0,0.00015451,2]
[326607861,1715136641354,-2937.71,0.00015451,2]
[326607862,1715136641363,-151.0,0.00015453,2]
[326607863,1715136641372,-152.288094,0.00015453,2]
[326607864,1715136641382,-151.0,0.00015453,2]
[326607865,1715136641392,-151.0,0.00015453,2]
[326607866,1715136641402,-158.807604,0.00015453,2]
[326607867,1715136641411,-151.0,0.00015453,2]
[326607868,1715136641421,-151.0,0.00015453,2]
[326607869,1715136641431,-299.627829,0.00015453,2]
[326607870,1715136641440,-506.58,0.00015456,2]
[326607871,1715136641450,-374.98129136,0.00015456,2]
[326607872,1715136641459,-500.0,0.00015456,2]
[326607873,1715136641469,-501.96826859,0.00015456,2]
[326607874,1715136641478,-500.0,0.00015456,2]
[326607875,1715136641487,-500.0,0.00015456,2]
[326607876,1715136641496,-501.35773235,0.00015456,2]
[326607877,1715136641506,-500.0,0.00015456,2]
[326607878,1715136641515,-503.65686392,0.00015456,2]
[326607879,1715136641525,-500.0,0.00015456,2]
[326607880,1715136641534,-502.68157883,0.00015456,2]
[326607881,1715136641544,-500.14585222,0.00015456,2]
[326607882,1715136641553,-503.53530209,0.00015456,2]
[326607883,1715136641563,-500.0,0.00015456,2]
[326607884,1715136641572,-510.03184808,0.00015456,2]
[326607885,1715136641582,-500.0,0.00015456,2]
[326607886,1715136641592,-500.0,0.00015456,2]
[326607887,1715136641602,-502.39675708,0.00015456,2]
[326607888,1715136641611,-244.61878013,0.00015456,2]
[326607889,1715136641621,-503.66905891,0.00015456,2]
[326607890,1715136641631,-299.62798764,0.00015456,2]
[326607891,1715136641640,-769.8,0.00015456,2]
[326607892,1715136641649,-503.07661905,0.00015456,2]
[326607893,1715136641659,-500.0,0.00015456,2]
[326607894,1715136641668,-500.0,0.00015456,2]
[326607895,1715136641678,-654.7,0.00015456,2]
[326607896,1715136641689,-151.0,0.00015456,2]
[326607897,1715136641699,-1161.53,0.00015456,2]
[326607898,1715136641710,-500.0,0.00015456,2]
[326607899,1715136641719,-502.530519,0.00015456,2]
[326607900,1715136641729,-573.36515402,0.00015456,2]
[326607901,1715136641739,-505.27509672,0.00015456,2]
[326607902,1715136641749,-500.0,0.00015456,2]
[326607903,1715136641759,-505.08778106,0.00015456,2]
[326607904,1715136641768,-500.0,0.00015456,2]
[326607905,1715136641778,-500.0,0.00015456,2]
[326607906,1715136641788,-500.0,0.00015456,2]
[326607908,1715136641932,-500.0,0.00015456,2]
[326607909,1715136641943,-502.84002691,0.00015456,2]
[326607910,1715136641953,-502.85675346,0.00015456,2]
[326607911,1715136641962,-502.16686497,0.00015456,2]
[326607912,1715136641971,-500.0,0.00015456,2]
[326607913,1715136641980,-151.0,0.00015456,2]
[326607914,1715136641990,-500.0,0.00015456,2]
[326607915,1715136642000,-151.0,0.00015456,2]
[326607916,1715136642009,-500.0,0.00015458,2]
[326607917,1715136642018,-500.53904699,0.00015458,2]
[326607918,1715136642028,-162.24108995,0.00015579,2]
[326607919,1715136642038,-2000.0,0.00015627,2]
[326607920,1715136642048,-435.07662337,0.0001563,2]
[326607921,1715136642058,-294.9154708,0.00015724,5]
[326607922,1715136642067,-3445.02,0.00015724,2]
[326607923,1715136642077,-500.0,0.00015724,2]
[326607924,1715136642086,-3187.32,0.00015724,2]
[326607925,1715136642095,-500.0,0.00015724,2]
[326607926,1715136642105,-500.0,0.00015724,2]
[326607927,1715136642115,-500.0,0.00015724,2]
[326607928,1715136642125,-2100.05,0.00015724,2]
[326607929,1715136642135,-834.18,0.00015724,2]
[326607930,1715136642145,-500.0,0.00015724,2]
[326607931,1715136642154,-500.0,0.00015724,2]
[326607932,1715136642164,-3262.91600364,0.00015725,2]
[326607933,1715136642172,-500.0,0.00015725,2]
[326607934,1715136642182,-500.0,0.00015725,2]
[326607935,1715136642191,-500.0,0.00015725,2]
[326607936,1715136642201,-1011.8,0.00015725,2]
[326607937,1715136642210,-500.0,0.00015725,2]
[326607938,1715136642220,-512.76,0.00015725,2]
[326607939,1715136642230,-500.0,0.00015725,2]
[326607940,1715136642239,-500.0,0.00015725,2]
[326607941,1715136642249,-498.10818071,0.00015725,2]
[326607942,1715136642259,-956.44,0.00015725,2]
[326607943,1715136642270,-155.033934,0.00015725,2]
[326607944,1715136642281,-500.0,0.00015725,2]
[326607945,1715136642290,-312.97734818,0.00015725,2]
[326607946,1715136642300,-1969.47,0.00015725,2]
[326607947,1715136642309,-500.0,0.00015725,2]
[326607948,1715136642320,-585.24,0.00015725,2]
[326607949,1715136642329,-500.0,0.00015725,2]
[326607950,1715136642339,-500.0,0.00015725,2]
[326607951,1715136642350,-513.63529583,0.00015725,2]
[326607952,1715136642359,-500.0,0.00015725,2]
[326607953,1715136642369,-500.0,0.00015725,2]
[326607954,1715136642378,-438.61248861,0.00015725,2]
[326607955,1715136642388,-974.66,0.00015725,2]
[326607956,1715136642397,-1092.57,0.00015725,2]
[326607957,1715136642407,-1278.78,0.00015725,2]
[326607958,1715136642417,-923.33,0.00015725,2]
[326607959,1715136642427,-214.018392,0.00015725,2]
[326607960,1715136642437,-500.0,0.00015725,2]
[326607961,1715136642448,-903.36,0.00015725,2]
[326607962,1715136642458,-500.0,0.00015725,2]
[326607963,1715136642467,-1790.63,0.00015725,2]
[326607964,1715136642477,-151.0,0.00015725,2]
[326607965,1715136642486,-151.0,0.00015725,2]
[326607966,1715136642496,-500.0,0.00015725,2]
[326607967,1715136642506,-2171.74,0.00015725,2]
[326607968,1715136642515,-1940.67,0.00015725,2]
[326607969,1715136642525,-1663.89,0.00015725,2]
[326607970,1715136642534,-644.94,0.00015725,2]
[326607971,1715136642544,-798.88,0.00015725,2]
[326607972,1715136642553,-500.0,0.00015725,2]
[326607973,1715136642563,-500.0,0.00015725,2]
[326607974,1715136642572,-3826.17,0.00015725,2]
[326607975,1715136642582,-151.0,0.00015725,2]
[326607976,1715136642591,-638.93318085,0.00015725,2]
[326607977,1715136642601,-1944.26,0.00015725,2]
[326607978,1715136642611,-500.0,0.00015725,2]
[326607979,1715136642621,-500.0,0.00015725,2]
[326607980,1715136642631,-1090.29957217,0.00015725,2]
[326608012,1715137326724,214.673313,0.00014192,2]
[326608013,1715137341762,24900.0,0.00014192,2]
[326608016,1715137812874,214.673313,0.00014176,2]
[326608058,1715137834417,-194.15546248,0.00015075,2]
[326608059,1715137834426,-475.37263714,0.00015173,2]
[326608060,1715137834436,-192.37417711,0.00015173,2]
[326608061,1715137834446,-1893.19317664,0.00015173,2]
[326608062,1715137834455,-174.08442524,0.00015173,2]
[326608063,1715137834465,-5312.52210828,0.00015174,2]
[326608064,1715137834474,-154.77278311,0.00015174,2]
[326608065,1715137834484,-362.20085629,0.00015174,2]
[326608066,1715137834494,-799.42,0.00015174,2]
[326608067,1715137834505,-500.0,0.00015174,2]
[326608068,1715137834515,-542.00622353,0.00015174,2]
[326608069,1715137834524,-513.9932126,0.00015174,2]
[326608070,1715137834534,-560.86,0.00015174,2]
[326608071,1715137834544,-507.73299777,0.00015174,2]
[326608072,1715137834553,-500.0,0.00015174,2]
[326608073,1715137834563,-1047.05,0.00015174,2]
[326608074,1715137834573,-3054.52,0.00015174,2]
[326608075,1715137834582,-507.52185709,0.00015174,2]
[326608076,1715137834592,-500.0,0.00015174,2]
[326608077,1715137834602,-500.0,0.00015174,2]
[326608078,1715137834612,-460.58633166,0.00015174,2]
[326608079,1715137834621,-3493.89,0.00015174,2]
[326608080,1715137834631,-1704.82,0.00015174,2]
[326608081,1715137834640,-500.0,0.00015174,2]
[326608082,1715137834650,-500.0,0.00015174,2]
[326608083,1715137834665,-500.0,0.00015174,2]
[326608084,1715137834675,-1103.05,0.00015174,2]
[326608085,1715137834684,-500.0,0.00015174,2]
[326608086,1715137834694,-2135.85,0.00015174,2]
[326608087,1715137834705,-500.0,0.00015174,2]
[326608088,1715137834714,-500.0,0.00015174,2]
[326608089,1715137834724,-500.0,0.00015175,2]
[326608090,1715137834734,-500.0,0.00015175,2]
[326608091,1715137834743,-500.0,0.00015175,2]
[326608092,1715137834756,-500.0,0.00015175,2]
[326608093,1715137834766,-969.64,0.00015175,2]
[326608094,1715137834776,-500.0,0.00015175,2]
[326608095,1715137834786,-500.0,0.00015175,2]
[326608096,1715137834796,-500.0,0.00015175,2]
[326608097,1715137834805,-500.0,0.00015175,2]
[326608098,1715137834815,-500.0,0.00015175,2]
[326608099,1715137834825,-500.0,0.00015175,2]
[326608100,1715137834835,-500.0,0.00015175,2]
[326608101,1715137834844,-916.59,0.00015175,2]
[326608102,1715137834854,-1863.25,0.00015175,2]
[326608103,1715137834863,-500.0,0.00015175,2]
[326608104,1715137834873,-1887.41,0.00015175,2]
[326608105,1715137834883,-500.0,0.00015175,2]
[326608106,1715137834892,-447.46239348,0.00015175,2]
[326608108,1715137840957,-500.0,0.00015174,2]
[326608112,1715137840968,-202.11748921,0.00015175,2]
[326608118,1715137840981,-1209.74309773,0.00015175,2]
[326608120,1715137840993,-955.97701958,0.00015175,2]
[326608122,1715137841004,-374.98129136,0.00015175,2]
[326608125,1715137841016,-500.0,0.00015175,2]
[326608128,1715137841025,-500.0,0.00015175,2]
[326608130,1715137841036,-500.0,0.00015175,2]
[326608132,1715137841047,-500.0,0.00015175,2]
[326608134,1715137841057,-501.96826859,0.00015175,2]
[326608136,1715137841067,-884.86,0.00015175,2]
[326608138,1715137841077,-500.0,0.00015175,2]
[326608140,1715137841087,-500.0,0.00015175,2]
[326608142,1715137841098,-10748.87,0.00015175,2]
[326608144,1715137841108,-500.0,0.00015175,2]
[326608146,1715137841119,-501.35773235,0.00015175,2]
[326608148,1715137841129,-500.0,0.00015175,2]
[326608150,1715137841139,-934.05,0.00015175,2]
[326608152,1715137841149,-500.0,0.00015175,2]
[326608154,1715137841159,-500.0,0.00015175,2]
[326608156,1715137841169,-503.65686392,0.00015175,2]
[326608158,1715137841179,-1225.5,0.00015175,2]
[326608160,1715137841189,-502.68157883,0.00015175,2]
[326608162,1715137841199,-865.72,0.00015175,2]
[326608164,1715137841209,-500.14585222,0.00015175,2]
[326608166,1715137841220,-618.06,0.00015175,2]
[326608168,1715137841230,-503.53530209,0.00015175,2]
[326608170,1715137841240,-500.0,0.00015175,2]
[326608172,1715137841250,-3666.75,0.00015175,2]
[326608174,1715137841260,-500.0,0.00015175,2]
[326608177,1715137841271,-500.0,0.00015175,2]
[326608179,1715137841281,-1716.02,0.00015175,2]
[326608181,1715137841291,-217.69931834,0.00015175,2]
[326608183,1715137841301,-500.0,0.00015175,2]
[326608184,1715137841311,-2081.25,0.00015175,2]
[326608187,1715137841322,-517.28,0.00015175,2]
[326608189,1715137841332,-1594.56,0.00015175,2]
[326608190,1715137841342,-765.59,0.00015175,2]
[326608192,1715137841352,-500.0,0.00015175,2]
[326608194,1715137841362,-500.0,0.00015175,2]
[326608196,1715137841372,-510.03184808,0.00015175,2]
[326608198,1715137841382,-1815.46,0.00015175,2]
[326608201,1715137841392,-500.0,0.00015175,2]
[326608202,1715137841402,-506.29563737,0.00015175,2]
[326608205,1715137841412,-500.0,0.00015176,2]
[326608206,1715137841422,-500.0,0.00015176,2]
[326608208,1715137841432,-500.0,0.00015176,2]
[326608210,1715137841441,-737.72,0.00015176,2]
[326608212,1715137841450,-502.39675708,0.00015176,2]
[326608214,1715137841460,-503.66905891,0.00015176,2]
[326608216,1715137841470,-500.0,0.00015176,2]
[326608218,1715137841480,-500.0,0.00015176,2]
[326608220,1715137841489,-503.07661905,0.00015176,2]
[326608222,1715137841499,-1113.13,0.00015176,2]
[326608224,1715137841511,-500.0,0.00015176,2]
[326608226,1715137841521,-502.530519,0.00015176,2]
[326608229,1715137841530,-644.56018378,0.00015177,2]
[326608230,1715137841540,-244.61878013,0.00015177,2]
[326608233,1715137841550,-299.62798764,0.00015177,2]
[326608235,1715137841560,-500.0,0.00015177,2]
[326608236,1715137841569,-627.43,0.00015177,2]
[326608238,1715137841579,-505.27509672,0.00015177,2]
[326608240,1715137841588,-573.36515402,0.00015177,2]
[326608242,1715137841598,-500.0,0.00015177,2]
[326608243,1715137841607,-500.53904699,0.00015177,2]
[326608245,1715137841617,-500.0,0.00015177,2]
[326608247,1715137841627,-505.08778106,0.00015177,2]
[326608249,1715137841636,-500.0,0.00015177,2]
[326608251,1715137841646,-500.0,0.00015177,2]
[326608252,1715137841657,-500.0,0.00015177,2]
[326608254,1715137841668,-502.84002691,0.00015177,2]
[326608256,1715137841678,-502.85675346,0.00015177,2]
[326608258,1715137841688,-502.16686497,0.00015177,2]
[326608260,1715137841697,-500.0,0.00015177,2]
[326608262,1715137841709,-494.19497672,0.00015177,2]
[326608264,1715137841719,-500.0,0.00015177,2]
[326608266,1715137841729,-194.15546246,0.00015214,2]
[326608268,1715137841741,-621.10063434,0.00015238,2]
[326608270,1715137841751,-194.15546246,0.00015353,2]
[326608272,1715137841762,-558.17082547,0.00015447,2]
[326608274,1715137841772,-799.42,0.00015448,2]
[326608276,1715137841781,-500.0,0.00015448,2]
[326608278,1715137841791,-560.86,0.00015448,2]
[326608280,1715137841800,-513.63529583,0.00015448,2]
[326608282,1715137841810,-1047.05,0.00015448,2]
[326608284,1715137841820,-3054.52,0.00015448,2]
[326608286,1715137841829,-500.0,0.00015448,2]
[326608288,1715137841839,-3493.89,0.00015448,2]
[326608290,1715137841849,-1704.82,0.00015448,2]
[326608292,1715137841859,-500.0,0.00015448,2]
[326608294,1715137841868,-500.0,0.00015448,2]
[326608296,1715137841878,-500.0,0.00015448,2]
[326608298,1715137841887,-1103.05,0.00015448,2]
[326608300,1715137841897,-500.0,0.00015448,2]
[326608302,1715137841907,-2135.85,0.00015448,2]
[326608304,1715137841917,-500.0,0.00015448,2]
[326608306,1715137841927,-500.0,0.00015448,2]
[326608308,1715137841936,-500.0,0.00015449,2]
[326608310,1715137841946,-500.0,0.00015449,2]
[326608312,1715137841955,-312.97734818,0.00015449,2]
[326608314,1715137841965,-500.0,0.00015449,2]
[326608316,1715137841974,-969.64,0.00015449,2]
[326608318,1715137841984,-500.0,0.00015449,2]
[326608320,1715137841993,-500.0,0.00015449,2]
[326608322,1715137842003,-500.0,0.00015449,2]
[326608324,1715137842013,-500.0,0.00015449,2]
[326608326,1715137842022,-500.0,0.00015449,2]
[326608328,1715137842033,-498.10818071,0.00015449,2]
[326608330,1715137842042,-916.59,0.00015449,2]
[326608332,1715137842053,-1863.25,0.00015449,2]
[326608334,1715137842063,-500.0,0.00015449,2]
[326608336,1715137842072,-1887.41,0.00015449,2]
[326608338,1715137842082,-2815.3,0.00015449,2]
[326608340,1715137842091,-500.0,0.00015449,2]
[326608342,1715137842100,-500.0,0.00015449,2]
[326608344,1715137842109,-500.0,0.00015449,2]
[326608347,1715137842121,-884.86,0.00015449,2]
[326608349,1715137842131,-500.0,0.00015449,2]
[326608350,1715137842141,-500.0,0.00015449,2]
[326608353,1715137842151,-10748.87,0.00015449,2]
[326608354,1715137842162,-438.61248861,0.00015449,2]
[326608357,1715137842172,-934.05,0.00015449,2]
[326608359,1715137842182,-500.0,0.00015449,2]
[326608360,1715137842191,-1225.5,0.00015449,2]
[326608361,1715137842201,-865.72,0.00015449,2]
[326608362,1715137842211,-618.06,0.00015449,2]
[326608363,1715137842220,-500.0,0.00015449,2]
[326608364,1715137842230,-3666.75,0.00015449,2]
[326608365,1715137842241,-500.0,0.00015449,2]
[326608366,1715137842250,-500.0,0.00015449,2]
[326608367,1715137842259,-1716.02,0.00015449,2]
[326608368,1715137842270,-500.0,0.00015449,2]
[326608369,1715137842279,-2081.25,0.00015449,2]
[326608370,1715137842289,-517.28,0.00015449,2]
[326608371,1715137842298,-1594.56,0.00015449,2]
[326608372,1715137842308,-765.59,0.00015449,2]
[326608374,1715137842317,-638.93318085,0.00015449,2]
[326608375,1715137842326,-500.0,0.00015449,2]
[326608377,1715137842335,-1815.46,0.00015449,2]
[326608379,1715137842345,-500.0,0.00015449,2]
[326608381,1715137842354,-500.0,0.0001545,2]
[326608383,1715137842363,-500.0,0.0001545,2]
[326608385,1715137842373,-737.72,0.0001545,2]
[326608387,1715137842383,-500.0,0.0001545,2]
[326608389,1715137842392,-500.0,0.0001545,2]
[326608391,1715137842401,-1113.13,0.0001545,2]
[326608393,1715137842411,-500.0,0.0001545,2]
[326608395,1715137842420,-500.0,0.00015451,2]
[326608397,1715137842429,-627.43,0.00015451,2]
[326608399,1715137842438,-500.0,0.00015451,2]
[326608401,1715137842447,-500.0,0.00015451,2]
[326608403,1715137842457,-500.0,0.00015451,2]
[326608405,1715137842466,-500.0,0.00015451,2]
[326608407,1715137842474,-500.0,0.00015451,2]
[326608409,1715137842483,-500.0,0.00015451,2]
[326608411,1715137842492,-500.0,0.00015451,2]
[326608413,1715137842502,-194.15546246,0.00015491,2]
[326608415,1715137842511,-153.0,0.000155,2]
[326608417,1715137842520,-153.0,0.000155,2]
[326608419,1715137842530,-162.24108995,0.00015567,2]
[326608421,1715137842539,-194.15546246,0.0001563,2]
[326608422,1715137842548,-799.42,0.00015722,2]
[326608424,1715137842558,-500.0,0.00015722,2]
[326608427,1715137842567,-560.86,0.00015722,2]
[326608428,1715137842577,-1047.05,0.00015722,2]
[326608430,1715137842588,-3054.52,0.00015722,2]
[326608433,1715137842597,-500.0,0.00015722,2]
[326608435,1715137842607,-3493.89,0.00015722,2]
[326608437,1715137842616,-1704.82,0.00015722,2]
[326608439,1715137842625,-500.0,0.00015722,2]
[326608441,1715137842635,-500.0,0.00015722,2]
[326608442,1715137842644,-500.0,0.00015722,2]
[326608444,1715137842654,-1103.05,0.00015722,2]
[326608446,1715137842666,-500.0,0.00015722,2]
[326608449,1715137842676,-2135.85,0.00015722,2]
[326608450,1715137842686,-500.0,0.00015722,2]
[326608452,1715137842695,-500.0,0.00015722,2]
[326608454,1715137842705,-500.0,0.00015723,2]
[326608456,1715137842715,-500.0,0.00015723,2]
[326608458,1715137842724,-500.0,0.00015723,2]
[326608460,1715137842733,-969.64,0.00015723,2]
[326608462,1715137842745,-500.0,0.00015723,2]
[326608465,1715137842755,-500.0,0.00015723,2]
[326608467,1715137842765,-500.0,0.00015723,2]
[326608468,1715137842775,-500.0,0.00015723,2]
[326608470,1715137842784,-500.0,0.00015723,2]
[326608473,1715137842793,-916.59,0.00015723,2]
[326608474,1715137842802,-1863.25,0.00015723,2]
[326608476,1715137842812,-500.0,0.00015723,2]
[326608478,1715137842821,-1887.41,0.00015723,2]
[326608481,1715137842831,-2815.3,0.00015723,2]
[326608483,1715137842840,-500.0,0.00015723,2]
[326608485,1715137842849,-500.0,0.00015723,2]
[326608487,1715137842860,-500.0,0.00015723,2]
[326608488,1715137842869,-884.86,0.00015723,2]
[326608490,1715137842878,-500.0,0.00015723,2]
[326608492,1715137842887,-500.0,0.00015723,2]
[326608494,1715137842897,-5163.38201827,0.00015723,2]
[326609821,1715138125399,1882.33843824,9.999e-05,2]
[326609823,1715138630729,154.75239617,9.999e-05,2]
[326609824,1715138956509,2500.0,0.00023,30]
[326609855,1715139039250,-154.73694719,0.0001505,2]
[326609859,1715139039262,-1381.70780638,0.00015051,2]
[326609868,1715139039279,-722.39839497,0.00015051,2]
[326609874,1715139039292,-155.32437,0.00015072,2]
[326609879,1715139039302,-155.32436996,0.00015141,2]
[326609883,1715139039313,-470.3104231,0.00015171,2]
[326609887,1715139039323,-244.13665793,0.00015171,2]
[326609891,1715139039334,-1898.54482415,0.00015171,2]
[326609894,1715139039345,-237.55661084,0.00015171,2]
[326609897,1715139039355,-155.26700169,0.00015171,2]
[326609900,1715139039365,-2927.24,0.00015171,2]
[326609903,1715139039375,-3348.31,0.00015171,2]